fUSD/lending_fUSD_20260513
["ID","MTS","AMOUNT","RATE_DAILY","PERIOD"]
[422161128,1778639454000,-52960.2252,0.0003966,2]
[422161152,1778639454000,-152.69595282,0.00039703,2]
[422161093,1778639454000,-408.76,0.00039432,7]
[422161092,1778639454000,-704.58,0.00039419,7]
[422161091,1778639454000,-1401.68,0.00039419,7]
[422161095,1778639454000,-158.09,0.00039456,7]
[422161096,1778639454000,-155.74,0.00039457,7]
[422161094,1778639454000,-410.04,0.00039432,7]
[422161098,1778639454000,-704.58,0.0003947,30]
[422161097,1778639454000,-1401.68,0.0003947,30]
[422161101,1778639454000,-11377.62,0.00039485,30]
[422161100,1778639454000,-410.04,0.00039482,30]
[422161103,1778639454000,-1000.0,0.00039491,10]
[422161099,1778639454000,-408.76,0.00039481,30]
[422161104,1778639454000,-384.85,0.00039505,120]
[422161106,1778639454000,-155.74,0.00039517,30]
[422161116,1778639454000,-155.74,0.00039577,2]
[422161107,1778639454000,-40216.0,0.0003952,120]
[422161105,1778639454000,-158.09,0.00039516,30]
[422161108,1778639454000,-1401.68,0.0003952,2]
[422161109,1778639454000,-704.58,0.0003952,2]
[422161112,1778639454000,-1816.11,0.00039534,120]
[422161113,1778639454000,-1401.68,0.00039571,7]
[422161111,1778639454000,-410.04,0.00039532,2]
[422161110,1778639454000,-408.76,0.00039531,2]
[422161115,1778639454000,-158.09,0.00039577,2]
[422161114,1778639454000,-704.58,0.00039571,7]
[422161118,1778639454000,-410.04,0.00039582,7]
[422161129,1778639454000,-1401.68,0.00039672,2]
[422161153,1778639454000,-169.84941287,0.00039703,2]
[422161148,1778639454000,-191.11111111,0.00039703,2]
[422161147,1778639454000,-151.21014935,0.00039703,2]
[422161183,1778639454000,-500.0,0.00039726,15]
[422161184,1778639454000,-500.0,0.00039726,15]
[422161185,1778639454000,-500.0,0.00039726,15]
[422161189,1778639454000,-500.0,0.00039726,15]
[422161186,1778639454000,-500.0,0.00039726,15]
[422161188,1778639454000,-500.0,0.00039726,15]
[422161187,1778639454000,-500.0,0.00039726,15]
[422161191,1778639454000,-160.63985178,0.00039726,15]
[422161201,1778639454000,-154.92749632,0.00039729,2]
[422161190,1778639454000,-500.0,0.00039726,15]
[422161192,1778639454000,-500.0,0.00039726,15]
[422161196,1778639454000,-300.0,0.00039726,120]
[422161194,1778639454000,-500.0,0.00039726,15]
[422161197,1778639454000,-217.0,0.00039726,30]
[422161199,1778639454000,-163.68713476,0.00039729,2]
[422161195,1778639454000,-500.0,0.00039726,15]
[422161193,1778639454000,-500.0,0.00039726,15]
[422161200,1778639454000,-269.43941065,0.00039729,2]
[422161198,1778639454000,-210.0,0.00039726,30]
[422161202,1778639454000,-167.47163586,0.00039729,2]
[422161203,1778639454000,-408.76,0.0003973,7]
[422161205,1778639454000,-157.57,0.0003975,120]
[422161207,1778639454000,-155.74,0.00039758,2]
[422161206,1778639454000,-158.09,0.00039757,2]
[422161204,1778639454000,-410.04,0.00039731,7]
[422161149,1778639454000,-197.6362911,0.00039703,2]
[422161208,1778639454000,-1000.0,0.00039765,10]
[422161182,1778639454000,-500.0,0.00039726,15]
[422161181,1778639454000,-500.0,0.00039726,15]
[422161209,1778639454000,-1401.68,0.00039773,30]
[422161180,1778639454000,-500.0,0.00039726,15]
[422161179,1778639454000,-500.0,0.00039726,15]
[422161151,1778639454000,-158.39224633,0.00039703,2]
[422161150,1778639454000,-164.62201325,0.00039703,2]
[422161155,1778639454000,-151.83673469,0.00039706,2]
[422161158,1778639454000,-165.92592593,0.00039707,2]
[422161159,1778639454000,-182.59482585,0.00039707,2]
[422161157,1778639454000,-189.39580985,0.00039707,2]
[422161156,1778639454000,-222.15199077,0.00039707,2]
[422161163,1778639454000,-176.76836261,0.00039719,2]
[422161160,1778639454000,-40216.0,0.0003971,120]
[422161162,1778639454000,-152.0,0.00039711,2]
[422161164,1778639454000,-201.97046144,0.00039719,2]
[422161165,1778639454000,-1401.68,0.00039723,7]
[422161161,1778639454000,-160.32818414,0.00039711,2]
[422161177,1778639454000,-500.0,0.00039726,15]
[422161167,1778639454000,-500.0,0.00039726,15]
[422161172,1778639454000,-500.0,0.00039726,15]
[422161174,1778639454000,-500.0,0.00039726,15]
[422161175,1778639454000,-500.0,0.00039726,15]
[422161169,1778639454000,-500.0,0.00039726,15]
[422161171,1778639454000,-500.0,0.00039726,15]
[422161170,1778639454000,-500.0,0.00039726,15]
[422161176,1778639454000,-500.0,0.00039726,15]
[422161168,1778639454000,-500.0,0.00039726,15]
[422161166,1778639454000,-704.58,0.00039723,7]
[422161178,1778639454000,-500.0,0.00039726,15]
[422161173,1778639454000,-500.0,0.00039726,15]
[422161244,1778639455000,-1339.33076319,0.000399,20]
[422161248,1778639455000,-157.72297697,0.00039902,2]
[422161241,1778639455000,-1621.53,0.000399,120]
[422161243,1778639455000,-77144.48,0.000399,2]
[422161251,1778639455000,-1401.68,0.00039925,30]
[422161240,1778639455000,-163.2,0.000399,120]
[422161247,1778639455000,-1000.0,0.00039902,10]
[422161249,1778639455000,-384.85,0.00039905,120]
[422161238,1778639455000,-3662.03,0.000399,60]
[422161245,1778639455000,-201.97,0.000399,16]
[422161242,1778639455000,-1621.53,0.000399,120]
[422161246,1778639455000,-40216.0,0.00039901,120]
[422161262,1778639455000,-158.09,0.00039998,7]
[422161253,1778639455000,-408.76,0.0003993,30]
[422161256,1778639455000,-155.74,0.00039938,2]
[422161254,1778639455000,-410.04,0.0003993,30]
[422161264,1778639455000,-3050.84825275,0.00039999,2]
[422161255,1778639455000,-158.09,0.00039938,2]
[422161263,1778639455000,-155.74,0.00039998,7]
[422161265,1778639455000,-2100.16983009,0.0004,2]
[422161257,1778639455000,-75399.53655657,0.0003997,2]
[422161258,1778639455000,-1401.68,0.00039976,2]
[422161261,1778639455000,-410.04,0.0003998,2]
[422161260,1778639455000,-408.76,0.00039979,2]
[422161250,1778639455000,-508.0,0.00039907,4]
[422161252,1778639455000,-704.58,0.00039925,30]
[422161239,1778639455000,-3662.02,0.000399,60]
[422161224,1778639455000,-1816.11,0.0003986,120]
[422161234,1778639455000,-410.04,0.0003988,7]
[422161210,1778639455000,-704.58,0.00039773,30]
[422161211,1778639455000,-408.76,0.0003978,30]
[422161212,1778639455000,-410.04,0.00039781,30]
[422161213,1778639455000,-889.84500097,0.000398,30]
[422161219,1778639455000,-1401.68,0.00039824,2]
[422161217,1778639455000,-158.09,0.00039817,7]
[422161218,1778639455000,-155.74,0.00039818,7]
[422161221,1778639455000,-408.76,0.0003983,2]
[422161220,1778639455000,-704.58,0.00039824,2]
[422161259,1778639455000,-704.58,0.00039976,2]
[422161222,1778639455000,-410.04,0.0003983,2]
[422161223,1778639455000,-187.65972801,0.0003984,2]
[422161237,1778639455000,-3662.03,0.000399,60]
[422161216,1778639455000,-10008.0253,0.00039805,2]
[422161215,1778639455000,-2001.9315,0.00039805,2]
[422161225,1778639455000,-768.58,0.00039863,60]
[422161227,1778639455000,-1401.68,0.00039875,7]
[422161232,1778639455000,-2640.18453583,0.0003988,120]
[422161228,1778639455000,-704.58,0.00039875,7]
[422161229,1778639455000,-981.3682,0.00039878,30]
[422161226,1778639455000,-228.9,0.00039863,60]
[422161231,1778639455000,-155.74,0.00039878,30]
[422161233,1778639455000,-408.76,0.0003988,7]
[422161230,1778639455000,-158.09,0.00039878,30]
[422161235,1778639455000,-2374.0,0.00039882,11]
[422161236,1778639455000,-159.66320043,0.0003989,2]
[422161214,1778639455000,-384.85,0.00039805,120]
[422161266,1778639455000,-393.56193328,0.0004,30]
[422161318,1778639455000,-7727.36,0.00040044,120]
[422161277,1778639455000,-515.55674824,0.0004,2]
[422161298,1778639455000,-30544.4930499,0.0004,120]
[422161296,1778639455000,-454.45236381,0.0004,120]
[422161300,1778639455000,-245.77571807,0.0004,120]
[422161302,1778639455000,-851.57,0.0004,120]
[422161303,1778639455000,-154.0,0.0004,30]
[422161304,1778639455000,-202.0,0.0004,30]
[422161305,1778639455000,-218.46,0.0004,120]
[422161308,1778639455000,-413.57,0.0004,120]
[422161307,1778639455000,-688.53,0.0004,120]
[422161306,1778639455000,-331.2,0.0004,120]
[422161309,1778639455000,-396.8,0.0004,120]
[422161312,1778639455000,-704.58,0.00040027,7]
[422161297,1778639455000,-150.49641255,0.0004,120]
[422161311,1778639455000,-1401.68,0.00040027,7]
[422161320,1778639455000,-158.09,0.00040058,30]
[422161315,1778639455000,-162.09156743,0.00040035,120]
[422161314,1778639455000,-410.04,0.00040029,7]
[422161319,1778639455000,-169.79,0.00040054,120]
[422161316,1778639455000,-1000.0,0.00040039,10]
[422161317,1778639455000,-814.68,0.00040044,120]
[422161323,1778639455000,-704.58,0.00040077,30]
[422161321,1778639455000,-155.74,0.00040058,30]
[422161324,1778639455000,-408.76,0.00040079,30]
[422161325,1778639455000,-410.04,0.00040079,30]
[422161322,1778639455000,-1401.68,0.00040077,30]
[422161267,1778639455000,-1921.46864792,0.0004,4]
[422161313,1778639455000,-408.76,0.00040029,7]
[422161295,1778639455000,-383.76373632,0.0004,120]
[422161310,1778639455000,-384.85,0.00040005,120]
[422161299,1778639455000,-213.79387096,0.0004,30]
[422161293,1778639455000,-380.0,0.0004,120]
[422161268,1778639455000,-24134.93548826,0.0004,2]
[422161269,1778639455000,-396.34991354,0.0004,2]
[422161272,1778639455000,-330.25822551,0.0004,2]
[422161270,1778639455000,-1585.73370663,0.0004,2]
[422161275,1778639455000,-163.97940622,0.0004,2]
[422161271,1778639455000,-4176.07107658,0.0004,2]
[422161276,1778639455000,-10861.7725003,0.0004,2]
[422161273,1778639455000,-200.42136563,0.0004,120]
[422161280,1778639455000,-10000.12345678,0.0004,5]
[422161279,1778639455000,-610.23323427,0.0004,2]
[422161281,1778639455000,-10000.12345678,0.0004,6]
[422161284,1778639455000,-161.3,0.0004,120]
[422161274,1778639455000,-319.56587598,0.0004,2]
[422161294,1778639455000,-232.55,0.0004,120]
[422161285,1778639455000,-2045.07522,0.0004,10]
[422161292,1778639455000,-564.1357537,0.0004,30]
[422161290,1778639455000,-170.3,0.0004,120]
[422161301,1778639455000,-477.21,0.0004,120]
[422161291,1778639455000,-1000.0,0.0004,120]
[422161286,1778639455000,-156.0,0.0004,120]
[422161278,1778639455000,-200.0,0.0004,7]
[422161289,1778639455000,-10000.0,0.0004,41]
[422161288,1778639455000,-156.02197,0.0004,11]
[422161282,1778639455000,-4642.82885166,0.0004,2]
[422161287,1778639455000,-152.0,0.0004,120]
[422161283,1778639455000,-3672.31,0.0004,30]
[422161342,1778639456000,-4549.11,0.00040178,60]
[422161340,1778639456000,-157.72297697,0.00040176,2]
[422161339,1778639456000,-169.79,0.00040154,120]
[422161341,1778639456000,-1000.0,0.00040176,10]
[422161343,1778639456000,-409.11,0.00040178,7]
[422161345,1778639456000,-408.9,0.00040178,7]
[422161348,1778639456000,-704.61,0.00040178,7]
[422161346,1778639456000,-158.16,0.00040178,7]
[422161344,1778639456000,-1404.96,0.00040178,7]
[422161350,1778639456000,-155.75,0.00040178,7]
[422161349,1778639456000,-410.1,0.00040178,7]
[422161347,1778639456000,-1401.71,0.00040178,7]
[422161352,1778639456000,-21456.80462493,0.000402,2]
[422161329,1778639456000,-384.85,0.00040105,120]
[422161337,1778639456000,-410.04,0.00040129,2]
[422161335,1778639456000,-704.58,0.00040128,2]
[422161336,1778639456000,-408.76,0.00040129,2]
[422161334,1778639456000,-1401.68,0.00040128,2]
[422161332,1778639456000,-155.74,0.00040118,2]
[422161333,1778639456000,-172.82236334,0.00040124,2]
[422161330,1778639456000,-165.11300457,0.00040117,2]
[422161327,1778639456000,-273.57,0.000401,2]
[422161326,1778639456000,-40216.0,0.00040092,120]
[422161331,1778639456000,-158.09,0.00040118,2]
[422161328,1778639456000,-77144.48,0.000401,2]
[422161351,1778639456000,-1816.11,0.00040186,120]
[422161338,1778639456000,-516.62,0.00040134,120]
[422161353,1778639456000,-39132.88238231,0.000402,2]
[422161377,1778639456000,-200.0,0.0004028,15]
[422161361,1778639456000,-169.79,0.00040254,120]
[422161355,1778639456000,-15174.23949802,0.000402,2]
[422161383,1778639456000,-11892.9673484,0.000403,120]
[422161380,1778639456000,-180.1017416,0.00040284,120]
[422161381,1778639456000,-152.09,0.0004029,60]
[422161379,1778639456000,-40216.0,0.00040282,120]
[422161370,1778639456000,-300.0,0.00040279,2]
[422161369,1778639456000,-300.0,0.00040279,2]
[422161374,1778639456000,-200.0,0.0004028,15]
[422161373,1778639456000,-200.0,0.0004028,15]
[422161375,1778639456000,-200.0,0.0004028,15]
[422161371,1778639456000,-423.37,0.00040279,2]
[422161372,1778639456000,-200.0,0.0004028,15]
[422161367,1778639456000,-300.0,0.00040279,2]
[422161382,1778639456000,-543.12,0.0004029,60]
[422161365,1778639456000,-300.0,0.00040279,2]
[422161368,1778639456000,-300.0,0.00040279,2]
[422161356,1778639456000,-163.0,0.00040202,11]
[422161357,1778639456000,-384.85,0.00040205,120]
[422161358,1778639456000,-172.82236334,0.00040224,2]
[422161354,1778639456000,-1380.55349474,0.000402,2]
[422161362,1778639456000,-6215.99,0.00040273,108]
[422161364,1778639456000,-300.0,0.00040279,2]
[422161359,1778639456000,-516.62,0.00040234,120]
[422161363,1778639456000,-300.0,0.00040279,2]
[422161378,1778639456000,-306.03904865,0.0004028,15]
[422161366,1778639456000,-300.0,0.00040279,2]
[422161360,1778639456000,-1000.0,0.0004025,120]
[422161376,1778639456000,-200.0,0.0004028,15]
[422161397,1778639458000,-518.15585916,0.00040355,60]
[422161401,1778639458000,-4049.00910292,0.00040433,12]
[422161400,1778639458000,-172.82236334,0.00040424,2]
[422161399,1778639458000,-3541.0,0.00040408,2]
[422161403,1778639458000,-1103.2806799,0.00040447,50]
[422161404,1778639458000,-1079.90550641,0.00040447,50]
[422161405,1778639458000,-1110.10011845,0.00040447,50]
[422161406,1778639458000,-1000.43936246,0.00040447,50]
[422161408,1778639458000,-1009.65032767,0.00040447,50]
[422161398,1778639458000,-384.85,0.00040405,120]
[422161402,1778639458000,-516.62,0.00040434,120]
[422161394,1778639458000,-516.62,0.00040334,120]
[422161393,1778639458000,-172.82236334,0.00040324,2]
[422161396,1778639458000,-500.0,0.00040355,60]
[422161392,1778639458000,-1000.0,0.00040313,10]
[422161390,1778639458000,-384.85,0.00040305,120]
[422161387,1778639458000,-151.0,0.00038356,30]
[422161391,1778639458000,-2392.3319,0.00040313,30]
[422161388,1778639458000,-151.0,0.00038356,30]
[422161389,1778639458000,-90887.85373113,0.000403,120]
[422161386,1778639458000,-151.0,0.00038356,30]
[422161384,1778639458000,-0.00074091,0.00038356,30]
[422161385,1778639458000,-150.99925909,0.00038356,30]
[422161412,1778639458000,-1127.26194972,0.00040447,50]
[422161395,1778639458000,-169.79744913,0.00040354,120]
[422161407,1778639458000,-1037.27064186,0.00040447,50]
[422161410,1778639458000,-1016.97271045,0.00040447,50]
[422161409,1778639458000,-1112.1696685,0.00040447,50]
[422161435,1778639458000,-40216.0,0.00040664,120]
[422161434,1778639458000,-508.0,0.00040649,10]
[422161432,1778639458000,-172.82236334,0.00040624,2]
[422161433,1778639458000,-516.62,0.00040634,120]
[422161430,1778639458000,-150.0,0.00040593,2]
[422161429,1778639458000,-1000.0,0.00040587,10]
[422161428,1778639458000,-516.62,0.00040534,120]
[422161431,1778639458000,-384.85,0.00040605,120]
[422161421,1778639458000,-152.0,0.000405,120]
[422161427,1778639458000,-172.82236334,0.00040524,2]
[422161425,1778639458000,-384.85,0.00040505,120]
[422161426,1778639458000,-1816.11,0.00040512,120]
[422161418,1778639458000,-180.10174158,0.00040488,120]
[422161424,1778639458000,-77144.48,0.000405,2]
[422161419,1778639458000,-184.14,0.00040498,30]
[422161411,1778639458000,-1023.21187713,0.00040447,50]
[422161415,1778639458000,-1000.0,0.0004045,10]
[422161416,1778639458000,-40216.0,0.00040473,120]
[422161436,1778639458000,-180.10174158,0.00040691,120]
[422161422,1778639458000,-153.21980407,0.000405,120]
[422161413,1778639458000,-1228.20692701,0.00040447,50]
[422161414,1778639458000,-157.72297697,0.0004045,2]
[422161420,1778639458000,-11355.43010481,0.000405,120]
[422161423,1778639458000,-1484.38230829,0.000405,30]
[422161417,1778639458000,-1142.31653078,0.00040477,120]
[422161462,1778639459000,-26772.34407074,0.0004095,10]
[422161459,1778639459000,-189.0,0.00040946,11]
[422161458,1778639459000,-516.62,0.00040934,120]
[422161452,1778639459000,-3318.14,0.00040861,120]
[422161453,1778639459000,-368.67491745,0.0004088,30]
[422161455,1778639459000,-20000.0,0.000409,30]
[422161454,1778639459000,-180.10174158,0.00040895,120]
[422161447,1778639459000,-384.85,0.00040805,120]
[422161457,1778639459000,-384.85,0.00040905,120]
[422161450,1778639459000,-40223.0,0.00040854,120]
[422161448,1778639459000,-516.62,0.00040834,120]
[422161446,1778639459000,-5105.95528025,0.000408,120]
[422161449,1778639459000,-1816.11,0.00040838,120]
[422161451,1778639459000,-1000.0,0.00040861,10]
[422161445,1778639459000,-27733.63863828,0.000408,60]
[422161461,1778639459000,-30000.0,0.0004095,2]
[422161440,1778639459000,-516.62,0.00040734,120]
[422161442,1778639459000,-174.54,0.0004075,120]
[422161439,1778639459000,-157.72297697,0.00040724,2]
[422161441,1778639459000,-175.45,0.0004075,120]
[422161438,1778639459000,-1000.0,0.00040724,10]
[422161444,1778639459000,-77144.48,0.000408,2]
[422161443,1778639459000,-346.04884219,0.0004075,120]
[422161456,1778639459000,-200.0,0.000409,17]
[422161437,1778639459000,-384.85,0.00040705,120]
[422161468,1778639459000,-22469.59841013,0.00041,120]
[422161464,1778639459000,-1000.0,0.00040998,10]
[422161486,1778639459000,-304.20975217,0.00041,10]
[422161487,1778639459000,-9859.71199158,0.00041,10]
[422161488,1778639459000,-4538.993,0.00041,10]
[422161485,1778639459000,-253.61034238,0.00041,10]
[422161483,1778639459000,-3229.859,0.00040824,2]
[422161484,1778639459000,-15246.62749408,0.00041,10]
[422161479,1778639459000,-3630.0,0.00031824,2]
[422161460,1778639459000,-266152.0,0.0004095,60]
[422161482,1778639459000,-3630.0,0.00037824,2]
[422161480,1778639459000,-3270.56471882,0.00034824,2]
[422161478,1778639459000,-3630.0,0.00028824,2]
[422161475,1778639459000,-3630.0,0.00019824,2]
[422161481,1778639459000,-359.43528118,0.00034824,2]
[422161476,1778639459000,-3630.0,0.00022824,2]
[422161477,1778639459000,-3630.0,0.00025824,2]
[422161467,1778639459000,-57969.9434131,0.00041,5]
[422161466,1778639459000,-150.0,0.00040999,120]
[422161463,1778639459000,-18745.758119,0.0004098,15]
[422161469,1778639459000,-153.24028789,0.00038356,30]
[422161465,1778639459000,-157.72297697,0.00040998,2]
[422161471,1778639459000,-7978.35,0.00027397,10]
[422161474,1778639459000,184.99,0.00027397,120]
[422161472,1778639459000,-19399.57136197,0.00041,120]
[422161473,1778639459000,-1969.35416493,0.00041,10]
[422161470,1778639459000,-350.3285953,0.00041,120]
[422161495,1778639846000,232.15,0.00024809,120]
[422161497,1778639865000,152.0,0.00013747,7]
[422161508,1778640532000,10000.0,0.00027397,120]
[422161509,1778640542000,10000.0,0.00027397,120]
[422161510,1778640548000,10000.0,0.00027397,120]
[422161511,1778640560000,10000.0,0.00027397,120]
[422161512,1778640566000,10000.0,0.00027397,120]
[422161513,1778640572000,10000.0,0.00027397,120]
[422161514,1778640578000,10000.0,0.00027397,120]
[422161515,1778640584000,10000.0,0.00027397,120]
[422161516,1778640592000,10000.0,0.00027397,120]
[422161517,1778640599000,10000.0,0.00027397,120]
[422161518,1778640616000,353.0,0.00027397,120]
[422161542,1778640631000,-500.0,0.00013308,2]
[422161545,1778640631000,-500.0,0.00013308,2]
[422161543,1778640631000,-500.0,0.00013308,2]
[422161541,1778640631000,-170.45495989,0.00013308,2]
[422161539,1778640631000,-150.0,0.00013308,2]
[422161540,1778640631000,-170.0,0.00013308,2]
[422161538,1778640631000,-217.36744062,0.00013299,2]
[422161536,1778640631000,-2500.0,0.00013209,2]
[422161531,1778640631000,-300.0,0.00013208,2]
[422161537,1778640631000,-5000.0,0.00013209,2]
[422161533,1778640631000,-199.05470188,0.00013209,2]
[422161530,1778640631000,-1244.764,0.00013043,2]
[422161534,1778640631000,-2183.43934589,0.00013209,2]
[422161532,1778640631000,-1200.0,0.00013208,2]
[422161544,1778640631000,-500.0,0.00013308,2]
[422161546,1778640631000,-500.0,0.00013308,2]
[422161535,1778640631000,-181854.577,0.00013209,2]
[422161548,1778640631000,-500.0,0.00013308,2]
[422161549,1778640631000,-500.0,0.00013308,2]
[422161559,1778640631000,-500.0,0.00013308,2]
[422161558,1778640631000,-500.0,0.00013308,2]
[422161561,1778640631000,-500.0,0.00013308,2]
[422161571,1778640631000,-500.0,0.00013308,2]
[422161567,1778640631000,-500.0,0.00013308,2]
[422161555,1778640631000,-418.45193777,0.00013308,2]
[422161569,1778640631000,-500.0,0.00013308,2]
[422161565,1778640631000,-500.0,0.00013308,2]
[422161554,1778640631000,-500.0,0.00013308,2]
[422161553,1778640631000,-500.0,0.00013308,2]
[422161552,1778640631000,-500.0,0.00013308,2]
[422161547,1778640631000,-500.0,0.00013308,2]
[422161551,1778640631000,-500.0,0.00013308,2]
[422161556,1778640631000,-500.0,0.00013308,2]
[422161563,1778640631000,-500.0,0.00013308,2]
[422161590,1778640632000,-500.0,0.00013308,2]
[422161578,1778640632000,-500.0,0.00013308,2]
[422161589,1778640632000,-500.0,0.00013308,2]
[422161588,1778640632000,-500.0,0.00013308,2]
[422161587,1778640632000,-500.0,0.00013308,2]
[422161586,1778640632000,-322.33237328,0.00013308,2]
[422161584,1778640632000,-500.0,0.00013308,2]
[422161585,1778640632000,-500.0,0.00013308,2]
[422161575,1778640632000,-500.0,0.00013308,2]
[422161583,1778640632000,-500.0,0.00013308,2]
[422161576,1778640632000,-500.0,0.00013308,2]
[422161580,1778640632000,-500.0,0.00013308,2]
[422161582,1778640632000,-500.0,0.00013308,2]
[422161577,1778640632000,-500.0,0.00013308,2]
[422161573,1778640632000,-500.0,0.00013308,2]
[422161592,1778640632000,-500.0,0.00013308,2]
[422161581,1778640632000,-266.76717307,0.00013308,2]
[422161594,1778640632000,-637.32700638,0.00013308,2]
[422161604,1778640632000,-2000.0,0.00013309,2]
[422161593,1778640632000,-368.07020779,0.00013308,2]
[422161611,1778640632000,-378.50748251,0.00013309,2]
[422161612,1778640632000,-706.95471448,0.00013309,2]
[422161595,1778640632000,-500.0,0.00013308,2]
[422161609,1778640632000,-102636.49810522,0.00013309,2]
[422161605,1778640632000,-33166.2013,0.00013309,2]
[422161606,1778640632000,-1338160.85687726,0.00013309,2]
[422161610,1778640632000,-1283.59230351,0.00013309,2]
[422161607,1778640632000,-10491.6502336,0.00013309,2]
[422161608,1778640632000,-37078.82541333,0.00013309,2]
[422161602,1778640632000,-500.0,0.00013308,2]
[422161601,1778640632000,-247.26527247,0.00013308,2]
[422161600,1778640632000,-500.0,0.00013308,2]
[422161597,1778640632000,-202.41179327,0.00013308,2]
[422161599,1778640632000,-500.0,0.00013308,2]
[422161598,1778640632000,-500.0,0.00013308,2]
[422161596,1778640632000,-500.1198441,0.00013308,2]
[422161591,1778640632000,-500.0,0.00013308,2]
[422161603,1778640632000,-500.0,0.00013308,2]
[422161629,1778640637000,-500.0,0.00013698,2]
[422161625,1778640637000,-505.20161375,0.00013698,2]
[422161623,1778640637000,-348.19872834,0.00013698,2]
[422161624,1778640637000,-500.0,0.00013698,2]
[422161620,1778640637000,-500.0,0.00013698,2]
[422161616,1778640637000,-873.17157974,0.00013447,2]
[422161621,1778640637000,-500.0,0.00013698,2]
[422161617,1778640637000,-160.0,0.0001358,2]
[422161614,1778640637000,-1287.1,0.00013309,2]
[422161615,1778640637000,-7976.01487009,0.00013309,2]
[422161627,1778640637000,-500.0,0.00013698,2]
[422161619,1778640637000,-500.0,0.00013698,2]
[422161626,1778640637000,-500.0,0.00013698,2]
[422161618,1778640637000,-500.0,0.00013698,2]
[422161628,1778640637000,-598.59833531,0.00013698,2]
[422161622,1778640637000,-204.14689797,0.00013698,2]
[422161637,1778640637000,-500.0,0.00013698,2]
[422161639,1778640637000,-500.0,0.00013698,2]
[422161635,1778640637000,-500.0,0.00013698,2]
[422161640,1778640637000,-500.0,0.00013698,2]
[422161636,1778640637000,-500.0,0.00013698,2]
[422161641,1778640637000,-140.6679748,0.00013845,2]
[422161634,1778640637000,-500.0,0.00013698,2]
[422161638,1778640637000,-500.0,0.00013698,2]
[422161630,1778640637000,-500.0,0.00013698,2]
[422161631,1778640637000,-500.0,0.00013698,2]
[422161632,1778640637000,-500.0,0.00013698,2]
[422161633,1778640637000,-500.0,0.00013698,2]
[422161724,1778640638000,-151.0,0.00017071,2]
[422161693,1778640638000,-332.57,0.00016636,2]
[422161689,1778640638000,-166.66,0.00016613,2]
[422161695,1778640638000,-184.57,0.00016712,2]
[422161697,1778640638000,-736.0,0.00016901,2]
[422161701,1778640638000,-7879.38,0.00016922,2]
[422161699,1778640638000,-5984.31,0.00016922,2]
[422161705,1778640638000,-4999.99,0.00016922,2]
[422161712,1778640638000,-332.57,0.00017052,2]
[422161709,1778640638000,-166.46,0.00016991,2]
[422161708,1778640638000,-166.66,0.00016942,2]
[422161718,1778640638000,-151.0,0.00017071,2]
[422161728,1778640638000,-151.0,0.00017071,2]
[422161720,1778640638000,-151.0,0.00017071,2]
[422161714,1778640638000,-151.0,0.00017071,2]
[422161722,1778640638000,-151.0,0.00017071,2]
[422161704,1778640638000,-1195.48,0.00016922,2]
[422161692,1778640638000,-156.85,0.00016631,2]